Workbook

Sheet Annual Summaries
A1: Program | B1: Program Information: | C1: Program Data and Updates: | D1: Resource Requests
A2: Athletics Abbreviated | B2: Summary: Exemplary: The program information demonstrates mission alignment with the college, includes substantial and specific examples and is clear and concise. | C2: Summary: Exemplary/Satisfactory: Data and Updates are complete and insightful. The details of student success such as retention and course success rate are discussed. Student achievement is identified (graduation, GPA, retention) and compared to district or previous levels—what impacts these achievements is not explicitly articulated which could improve analysis. We applaud them for their major fundraising efforts. | D2: Summary: Exemplary: clearly tied to previous sections.
A3: Auto Tech Abbreviated | B3: Summary: Satisfactory-Lots of great student opportunities. Clear and concise information. Needs to provide more language to align with the college mission. The review briefly provides relevant details about how the program impacts the college and community or service areas. | C3: Summary: Satisfactory Factors impacting student achievement and learning are clearly stated; Discussion of data is complete and some comparative comments regarding program or discipline changes are present;. Needs some student equity data. | D3: N/A
A4: Basic Needs Abbreviated | B4: Summary: Exemplary: Program mission clearly aligns with the mission of the college. Substantial and specific examples included. Clear and concise. It’s fantastic that the program was able to offer students help directly instead of referring them elsewhere for housing needs/aid. Reviewers appreciate in particular the program’s reference to EMP initiatives and California Education Code of Regulations to demonstrate how the program’s work supports the college’s mission. Ditto for the representation of student perspectives. If comparative analysis was done regarding the communication degree for transfer data, then it would be beneficial to include the data analyzed for increased clarity in this section of the report. | C4: Summary: Exemplary: Data and updates are complete and insightful; commentary was given regarding factors that may have contributed to program or discipline changes. Factors impacting student achievement and learning are described in detail. Student equity data is thoroughly discussed. The student equity data here is as substantial as reviewers have seen from any student-centered program and the interpretation of that data is clear. The conclusions/updates to program plans that the program comes to based on the available data are also clearly justified. | D4: N/A
A5: Bus Office Abbreviated | B5: Summary: Satisfactory: The program mission and details are well-defined, with examples that are both specific and clear in illustrating the program’s primary functions. Reviewers noted that the program mission should be articulated in a way such that it aligns more directly with the college’s mission and the program could stand to explain more thoroughly how its work meets the diverse needs of students as the education environment continues to evolve. | C5: Summary: Developing: There is an absence of data points or comparative analysis regarding program/discipline changes in the Data Highlights section and in the Updates to Program Plans section (for example, why is the process for switching to a more user-friendly method for Cal Cards, etc taking longer than expected?). Student Equity data or impact is not discussed. | D5: N/A
A6: Dental Abbreviated | B6: Summary: Satisfactory: Program mission aligns with the mission of the college. Substantial and specific examples included. Clear and concise. The program summary and the accomplishments section speak substantially to how the program is meeting enrollment/completion/job placement goals which align with the mission of the college, but the program could stand to clarify that alignment rather than leaving it mostly implied. This can easily be accomplished by quoting or directly referencing parts of the mission statement followed by how the program explicitly supports that section of the mission. The program could explain more clearly the nature of the Dental Health Center and what services it provides. | C6: Summary: Satisfactory: Data and updates are complete and some comparative comments regarding program or discipline changes are present. Factors impacting student achievement and learning are clearly stated. Student equity data is discussed briefly. The success and retention rate of the program with regard to gender, ethnicity, and first year college demographics is particularly impressive and I would have liked to see the program dig into that data more thoroughly. Reviewers encourage the program to reach out to the Institutional Research Office for help with data collection/analysis and summarizing that analysis in the program review narrative in the “Program Data and Updates” section. | D6: N/A
A7: Distance Ed Abbreviated | B7: Summary: Satisfactory/Developing- Program mission needs more clarification about how it aligns with the mission of the college. The review requires more relevant details about how the program impacts the college and community or service areas. Relevant details are provided about how the program impacts the college and community or service areas with some examples included. Please explain just how important DE is to the District given that just over 50% of CR students take at least one online course. | C7: Summary: Exemplary- DE plan includes detailed plan and discussion. Discussion of data is complete and insightful; commentary was given regarding factors that may have contributed to program or discipline changes; Factors impacting student achievement and learning are described in detail; Student equity data is thoroughly discussed. | D7: N/A
A8: Fine Arts Abbreviated | B8: Summary: Developing - It does provide one example of support for the college mission but is missing content that could support overall objectives. To the author, please look in each section with the thought that the reader knows little about the program. | C8: Summary: Developing - This section is completely blank. | D8: Summary: Developing – No recorded consultation has taken place; requests are not linked to program or institutional plans. Math does not add up for the equipment purchase.
A9: FNR Abbreviated | B9: Summary: Exemplary - Many relevant and current examples of how relevant and vital the FNR program is to the mission and how it supports students both in careers and transfer opportunities for students. Lots of significant examples of accomplishments that tie directly to their goals and initiatives. AS degree receives national highlight as well as finding students who earned their Certificate of Achievement, but auto awarding didn’t give it to them. | C9: Summary: Developing: This area had many notable examples of data and detailed updates. The authors simply used the wrong template and thus a review of development was given based on the rubric. | D9: Summary: All resource requests are related to the mission, institutional goals and assessment data reported on
A10: Physical Science Abbreviated | B10: Summary: Developing/not present: this section was not filled out. | C10: Summary: Developing/Satisfactory: Overall, the information shared was useful. This document is not complete; however, the analysis seems effective. This could be improved by providing more detail and filling out area 2.0 Program Data Highlights (which was blank). Outcomes are compared with one another. There is a clearly articulated interest in student equity in the first two plans; specifically for inclusivity and equity across modality. The plans of Physical Science are mapped to the Education Master Plan. | D10: Summary: Exemplary/Satisfactory: resource requests are clearly linked to the plan/have been consultation.
A11: RN Abbreviated | B11: Summary: Exemplary – The mission of the program clearly aligns with District Mission, demonstrating a strong impact on both the community and the institution. Program functions include detailed and specific examples. | C11: Summary: Satisfactory- Program data points, highlights, and planning updates are complete regarding the program's improvement. Factors impacting student achievement and learning are clearly stated. Reviewers noted that it would have been helpful for the program to spend more time analyzing and discussing student equity data as it concerns the program’s development and planning process; it is clear that the program is meaningfully addressing issues related to student equity but program updates are currently not framed explicitly in terms of student equity. | D11: N/A
A12: WCE Abbreviated | B12: Summary: Exemplary – Mission clearly aligns with institutional goals and EMP. Several examples of that alignment were provided as well strong examples of accomplishments with relevant data. | C12: Summary: Satisfactory: Multiple strong examples provided, good use of data. This committee appreciates the move towards more data-driven decision making. Need to see a specific plan that the resource request in the next section is clearly linked to. Need to take section 2.1 with the updates to program plans, goals, and assessment and directly tie it to the resource request. | D12: Summary: Satisfactory/Developing - Would like to see the request linked to planning, both within the program and at the district level.
A13: Welding Abbreviated | B13: Summary: Exemplary/Satisfactory: Program mission aligns with the mission of the college. Some examples included. Clear and concise. Identifying the specific part of the mission statement that your program supports would help strengthen this part of the report. Great accomplishments section. | C13: Summary: Exemplary: Data and updates are complete and insightful; commentary was given regarding factors that may have contributed to program or discipline changes; Factors impacting student achievement and learning are described in detail; Student equity data is thoroughly discussed. | D13: N/A

Sheet Sheet2 (hidden)
A1: Criteria | B1: R1 | C1: R2 | D1: R3 | E1: Avg | F1: Program | G1: Request # and Description
A2: Reviewer | B2: Elder | C2: Haley | F2: Athletics Abbreviated Feedback Template 2024-25.docx | G2: Request 1: 2-4 Large passenger vans
A3: Alignment with an Institutional Goal or Institutional Objective (0***3) | B3: 3 | C3: 3 | F3: Athletics Abbreviated Feedback Template 2024-25.docx | G3: Request 1: 2-4 Large passenger vans
A4: Identified as a need based on assessment outcome(s) (0***3) | B4: 3 | C4: 3 | F4: Athletics Abbreviated Feedback Template 2024-25.docx | G4: Request 1: 2-4 Large passenger vans
A5: Number of students affected (0***3) | B5: 3 | C5: 3 | F5: Athletics Abbreviated Feedback Template 2024-25.docx | G5: Request 1: 2-4 Large passenger vans
A6: Meets a safety or legislated mandate (0***3) | B6: 3 | C6: 3 | F6: Athletics Abbreviated Feedback Template 2024-25.docx | G6: Request 1: 2-4 Large passenger vans
A7: Criticality of the request (0***3) | B7: 3 | C7: 3 | F7: Athletics Abbreviated Feedback Template 2024-25.docx | G7: Request 1: 2-4 Large passenger vans
A8: Total (0***15) | B8: 15 | C8: 15 | E8: =(15+15)/2 -> 15 | F8: Athletics Abbreviated Feedback Template 2024-25.docx | G8: Request 1: 2-4 Large passenger vans
A9: Average: | B9: 15 | F9: Athletics Abbreviated Feedback Template 2024-25.docx | G9: Request 1: 2-4 Large passenger vans
F10: Athletics Abbreviated Feedback Template 2024-25.docx | G10: Request 1: 2-4 Large passenger vans
F11: Athletics Abbreviated Feedback Template 2024-25.docx | G11: Request 1: 2-4 Large passenger vans
F12: Athletics Abbreviated Feedback Template 2024-25.docx | G12: Request 1: 2-4 Large passenger vans
F13: Athletics Abbreviated Feedback Template 2024-25.docx | G13: Request 1: 2-4 Large passenger vans
A14: Reviewer | B14: Elder | C14: Haley | F14: Athletics Abbreviated Feedback Template 2024-25.docx | G14: Request 2: 50-60 passenger bus
A15: Alignment with an Institutional Goal or Institutional Objective (0***3) | B15: 3 | C15: 3 | F15: Athletics Abbreviated Feedback Template 2024-25.docx | G15: Request 2: 50-60 passenger bus
A16: Identified as a need based on assessment outcome(s) (0***3) | B16: 3 | C16: 3 | F16: Athletics Abbreviated Feedback Template 2024-25.docx | G16: Request 2: 50-60 passenger bus
A17: Number of students affected (0***3) | B17: 3 | C17: 3 | F17: Athletics Abbreviated Feedback Template 2024-25.docx | G17: Request 2: 50-60 passenger bus
A18: Meets a safety or legislated mandate (0***3) | B18: 3 | C18: 3 | F18: Athletics Abbreviated Feedback Template 2024-25.docx | G18: Request 2: 50-60 passenger bus
A19: Criticality of the request (0***3) | B19: 3 | C19: 3 | F19: Athletics Abbreviated Feedback Template 2024-25.docx | G19: Request 2: 50-60 passenger bus
A20: Total (0***15) | B20: 15 | C20: 15 | E20: =AVERAGE(B20:D20) -> 15 | F20: Athletics Abbreviated Feedback Template 2024-25.docx | G20: Request 2: 50-60 passenger bus
A21: Average: | B21: 15 | F21: Athletics Abbreviated Feedback Template 2024-25.docx | G21: Request 2: 50-60 passenger bus
F22: Athletics Abbreviated Feedback Template 2024-25.docx | G22: Request 2: 50-60 passenger bus
F23: Athletics Abbreviated Feedback Template 2024-25.docx | G23: Request 2: 50-60 passenger bus
F24: Athletics Abbreviated Feedback Template 2024-25.docx | G24: Request 2: 50-60 passenger bus
F25: Athletics Abbreviated Feedback Template 2024-25.docx | G25: Request 2: 50-60 passenger bus
A26: Reviewer | B26: Elder | C26: Haley | F26: Athletics Abbreviated Feedback Template 2024-25.docx | G26: Request 3: Track Field Equipment
A27: Alignment with an Institutional Goal or Institutional Objective (0***3) | B27: 3 | C27: 3 | F27: Athletics Abbreviated Feedback Template 2024-25.docx | G27: Request 3: Track Field Equipment
A28: Identified as a need based on assessment outcome(s) (0***3) | B28: 2 | C28: 2 | F28: Athletics Abbreviated Feedback Template 2024-25.docx | G28: Request 3: Track Field Equipment
A29: Number of students affected (0***3) | B29: 3 | C29: 3 | F29: Athletics Abbreviated Feedback Template 2024-25.docx | G29: Request 3: Track Field Equipment
A30: Meets a safety or legislated mandate (0***3) | B30: 0 | C30: 1 | F30: Athletics Abbreviated Feedback Template 2024-25.docx | G30: Request 3: Track Field Equipment
A31: Criticality of the request (0***3) | B31: 2 | C31: 1 | F31: Athletics Abbreviated Feedback Template 2024-25.docx | G31: Request 3: Track Field Equipment
A32: Total (0***15) | B32: 10 | C32: 10 | E32: =AVERAGE(B32:D32) -> 10 | F32: Athletics Abbreviated Feedback Template 2024-25.docx | G32: Request 3: Track Field Equipment
A33: Average: | B33: 10 | F33: Athletics Abbreviated Feedback Template 2024-25.docx | G33: Request 3: Track Field Equipment
F34: Athletics Abbreviated Feedback Template 2024-25.docx | G34: Request 3: Track Field Equipment
F35: Athletics Abbreviated Feedback Template 2024-25.docx | G35: Request 3: Track Field Equipment
F36: Athletics Abbreviated Feedback Template 2024-25.docx | G36: Request 3: Track Field Equipment
F37: Athletics Abbreviated Feedback Template 2024-25.docx | G37: Request 3: Track Field Equipment
A38: Reviewer | B38: Elder | C38: Haley | F38: Athletics Abbreviated Feedback Template 2024-25.docx | G38: Request 4: Hudl Film share / stats
A39: Alignment with an Institutional Goal or Institutional Objective (0***3) | B39: 3 | C39: 3 | F39: Athletics Abbreviated Feedback Template 2024-25.docx | G39: Request 4: Hudl Film share / stats
A40: Identified as a need based on assessment outcome(s) (0***3) | B40: 3 | C40: 2 | F40: Athletics Abbreviated Feedback Template 2024-25.docx | G40: Request 4: Hudl Film share / stats
A41: Number of students affected (0***3) | B41: 3 | C41: 3 | F41: Athletics Abbreviated Feedback Template 2024-25.docx | G41: Request 4: Hudl Film share / stats
A42: Meets a safety or legislated mandate (0***3) | B42: 3 | C42: 3 | F42: Athletics Abbreviated Feedback Template 2024-25.docx | G42: Request 4: Hudl Film share / stats
A43: Criticality of the request (0***3) | B43: 2 | C43: 3 | F43: Athletics Abbreviated Feedback Template 2024-25.docx | G43: Request 4: Hudl Film share / stats
A44: Total (0***15) | B44: 14 | C44: 14 | E44: =AVERAGE(B44:D44) -> 14 | F44: Athletics Abbreviated Feedback Template 2024-25.docx | G44: Request 4: Hudl Film share / stats
A45: Average: | B45: 14 | F45: Athletics Abbreviated Feedback Template 2024-25.docx | G45: Request 4: Hudl Film share / stats
F46: Athletics Abbreviated Feedback Template 2024-25.docx | G46: Request 4: Hudl Film share / stats
F47: Athletics Abbreviated Feedback Template 2024-25.docx | G47: Request 4: Hudl Film share / stats
F48: Athletics Abbreviated Feedback Template 2024-25.docx | G48: Request 4: Hudl Film share / stats
F49: Athletics Abbreviated Feedback Template 2024-25.docx | G49: Request 4: Hudl Film share / stats
A50: Reviewer | B50: Elder | C50: Haley | F50: Athletics Abbreviated Feedback Template 2024-25.docx | G50: Request 5: Athletic website upgrades
A51: Alignment with an Institutional Goal or Institutional Objective (0***3) | B51: 2 | C51: 3 | F51: Athletics Abbreviated Feedback Template 2024-25.docx | G51: Request 5: Athletic website upgrades
A52: Identified as a need based on assessment outcome(s) (0***3) | B52: 0 | C52: 0 | F52: Athletics Abbreviated Feedback Template 2024-25.docx | G52: Request 5: Athletic website upgrades
A53: Number of students affected (0***3) | B53: 3 | C53: 3 | F53: Athletics Abbreviated Feedback Template 2024-25.docx | G53: Request 5: Athletic website upgrades
A54: Meets a safety or legislated mandate (0***3) | B54: 0 | C54: 0 | F54: Athletics Abbreviated Feedback Template 2024-25.docx | G54: Request 5: Athletic website upgrades
A55: Criticality of the request (0***3)0 | B55: 2 | C55: 2 | F55: Athletics Abbreviated Feedback Template 2024-25.docx | G55: Request 5: Athletic website upgrades
A56: Total (0***15) | B56: 7 | C56: 8 | E56: =AVERAGE(B56:D56) -> 7.5 | F56: Athletics Abbreviated Feedback Template 2024-25.docx | G56: Request 5: Athletic website upgrades
A57: Average: | B57: 7.5 | F57: Athletics Abbreviated Feedback Template 2024-25.docx | G57: Request 5: Athletic website upgrades
F58: Athletics Abbreviated Feedback Template 2024-25.docx | G58: Request 5: Athletic website upgrades
F59: Athletics Abbreviated Feedback Template 2024-25.docx | G59: Request 5: Athletic website upgrades
F60: Athletics Abbreviated Feedback Template 2024-25.docx | G60: Request 5: Athletic website upgrades
F61: Athletics Abbreviated Feedback Template 2024-25.docx | G61: Request 5: Athletic website upgrades
A62: Reviewer | B62: Amy | C62: Misty | F62: Auto Tech Abbreviated Feedback Template 2024-25.docx | G62: Request 1: (I’m adding up all the equipment costs here) Alignment machine** Battery lift** inspection harness** used engines** etc at $97**203.43 one-time costs
A63: Alignment with an Institutional Goal or Institutional Objective (0***3) | B63: 3 | C63: 3 | F63: Auto Tech Abbreviated Feedback Template 2024-25.docx | G63: Request 1: (I’m adding up all the equipment costs here) Alignment machine** Battery lift** inspection harness** used engines** etc at $97**203.43 one-time costs
A64: Identified as a need based on assessment outcome(s) (0***3) | B64: 3 | C64: 3 | F64: Auto Tech Abbreviated Feedback Template 2024-25.docx | G64: Request 1: (I’m adding up all the equipment costs here) Alignment machine** Battery lift** inspection harness** used engines** etc at $97**203.43 one-time costs
A65: Number of students affected (0***3) | B65: 3 | C65: 2 | F65: Auto Tech Abbreviated Feedback Template 2024-25.docx | G65: Request 1: (I’m adding up all the equipment costs here) Alignment machine** Battery lift** inspection harness** used engines** etc at $97**203.43 one-time costs
A66: Meets a safety or legislated mandate (0***3) | B66: 2 | C66: 2 | F66: Auto Tech Abbreviated Feedback Template 2024-25.docx | G66: Request 1: (I’m adding up all the equipment costs here) Alignment machine** Battery lift** inspection harness** used engines** etc at $97**203.43 one-time costs
A67: Criticality of the request (0***3) | B67: 3 | C67: 3 | F67: Auto Tech Abbreviated Feedback Template 2024-25.docx | G67: Request 1: (I’m adding up all the equipment costs here) Alignment machine** Battery lift** inspection harness** used engines** etc at $97**203.43 one-time costs
A68: Total (0***15) | B68: 14 | C68: 13 | E68: =AVERAGE(B68:D68) -> 13.5 | F68: Auto Tech Abbreviated Feedback Template 2024-25.docx | G68: Request 1: (I’m adding up all the equipment costs here) Alignment machine** Battery lift** inspection harness** used engines** etc at $97**203.43 one-time costs
A69: Average: | B69: 13.5 | F69: Auto Tech Abbreviated Feedback Template 2024-25.docx | G69: Request 1: (I’m adding up all the equipment costs here) Alignment machine** Battery lift** inspection harness** used engines** etc at $97**203.43 one-time costs
F70: Auto Tech Abbreviated Feedback Template 2024-25.docx | G70: Request 1: (I’m adding up all the equipment costs here) Alignment machine** Battery lift** inspection harness** used engines** etc at $97**203.43 one-time costs
F71: Auto Tech Abbreviated Feedback Template 2024-25.docx | G71: Request 1: (I’m adding up all the equipment costs here) Alignment machine** Battery lift** inspection harness** used engines** etc at $97**203.43 one-time costs
F72: Auto Tech Abbreviated Feedback Template 2024-25.docx | G72: Request 1: (I’m adding up all the equipment costs here) Alignment machine** Battery lift** inspection harness** used engines** etc at $97**203.43 one-time costs
F73: Auto Tech Abbreviated Feedback Template 2024-25.docx | G73: Request 1: (I’m adding up all the equipment costs here) Alignment machine** Battery lift** inspection harness** used engines** etc at $97**203.43 one-time costs
A74: Reviewer | B74: Amy | C74: Misty | F74: Auto Tech Abbreviated Feedback Template 2024-25.docx | G74: Request 2: Accommodate our growing program and satisfy ASE accreditation recommendations on use of available space by combining AT-128 and AT-132 into one larger room. (Facilities** cost unknown)
A75: Alignment with an Institutional Goal or Institutional Objective (0***3) | B75: 3 | C75: 3 | F75: Auto Tech Abbreviated Feedback Template 2024-25.docx | G75: Request 2: Accommodate our growing program and satisfy ASE accreditation recommendations on use of available space by combining AT-128 and AT-132 into one larger room. (Facilities** cost unknown)
A76: Identified as a need based on assessment outcome(s) (0***3) | B76: 3 | C76: 3 | F76: Auto Tech Abbreviated Feedback Template 2024-25.docx | G76: Request 2: Accommodate our growing program and satisfy ASE accreditation recommendations on use of available space by combining AT-128 and AT-132 into one larger room. (Facilities** cost unknown)
A77: Number of students affected (0***3) | B77: 3 | C77: 2 | F77: Auto Tech Abbreviated Feedback Template 2024-25.docx | G77: Request 2: Accommodate our growing program and satisfy ASE accreditation recommendations on use of available space by combining AT-128 and AT-132 into one larger room. (Facilities** cost unknown)
A78: Meets a safety or legislated mandate (0***3) | B78: 2 | C78: 2 | F78: Auto Tech Abbreviated Feedback Template 2024-25.docx | G78: Request 2: Accommodate our growing program and satisfy ASE accreditation recommendations on use of available space by combining AT-128 and AT-132 into one larger room. (Facilities** cost unknown)
A79: Criticality of the request (0***3) | B79: 3 | C79: 3 | F79: Auto Tech Abbreviated Feedback Template 2024-25.docx | G79: Request 2: Accommodate our growing program and satisfy ASE accreditation recommendations on use of available space by combining AT-128 and AT-132 into one larger room. (Facilities** cost unknown)
A80: Total (0***15) | B80: 14 | C80: 13 | E80: =AVERAGE(B80:D80) -> 13.5 | F80: Auto Tech Abbreviated Feedback Template 2024-25.docx | G80: Request 2: Accommodate our growing program and satisfy ASE accreditation recommendations on use of available space by combining AT-128 and AT-132 into one larger room. (Facilities** cost unknown)
A81: Average: | B81: 13.5 | F81: Auto Tech Abbreviated Feedback Template 2024-25.docx | G81: Request 2: Accommodate our growing program and satisfy ASE accreditation recommendations on use of available space by combining AT-128 and AT-132 into one larger room. (Facilities** cost unknown)
F82: Auto Tech Abbreviated Feedback Template 2024-25.docx | G82: Request 2: Accommodate our growing program and satisfy ASE accreditation recommendations on use of available space by combining AT-128 and AT-132 into one larger room. (Facilities** cost unknown)
F83: Auto Tech Abbreviated Feedback Template 2024-25.docx | G83: Request 2: Accommodate our growing program and satisfy ASE accreditation recommendations on use of available space by combining AT-128 and AT-132 into one larger room. (Facilities** cost unknown)
F84: Auto Tech Abbreviated Feedback Template 2024-25.docx | G84: Request 2: Accommodate our growing program and satisfy ASE accreditation recommendations on use of available space by combining AT-128 and AT-132 into one larger room. (Facilities** cost unknown)
F85: Auto Tech Abbreviated Feedback Template 2024-25.docx | G85: Request 2: Accommodate our growing program and satisfy ASE accreditation recommendations on use of available space by combining AT-128 and AT-132 into one larger room. (Facilities** cost unknown)
A86: Reviewer | B86: Amy | F86: Auto Tech Abbreviated Feedback Template 2024-25.docx | G86: Request 3: 20 more hours for our AT ISS (personnel** cost unknown)
B87: Misty | F87: Auto Tech Abbreviated Feedback Template 2024-25.docx | G87: Request 3: 20 more hours for our AT ISS (personnel** cost unknown)
A88: Alignment with an Institutional Goal or Institutional Objective (0***3) | B88: 2 | C88: 2 | F88: Auto Tech Abbreviated Feedback Template 2024-25.docx | G88: Request 3: 20 more hours for our AT ISS (personnel** cost unknown)
A89: Identified as a need based on assessment outcome(s) (0***3) | B89: 2 | C89: 2 | F89: Auto Tech Abbreviated Feedback Template 2024-25.docx | G89: Request 3: 20 more hours for our AT ISS (personnel** cost unknown)
A90: Number of students affected (0***3) | B90: 3 | C90: 2 | F90: Auto Tech Abbreviated Feedback Template 2024-25.docx | G90: Request 3: 20 more hours for our AT ISS (personnel** cost unknown)
A91: Meets a safety or legislated mandate (0***3) | B91: 2 | C91: 2 | F91: Auto Tech Abbreviated Feedback Template 2024-25.docx | G91: Request 3: 20 more hours for our AT ISS (personnel** cost unknown)
A92: Criticality of the request (0***3) | B92: 2 | C92: 2 | F92: Auto Tech Abbreviated Feedback Template 2024-25.docx | G92: Request 3: 20 more hours for our AT ISS (personnel** cost unknown)
A93: Total (0***15) | B93: 11 | C93: 10 | E93: =AVERAGE(B93:D93) -> 10.5 | F93: Auto Tech Abbreviated Feedback Template 2024-25.docx | G93: Request 3: 20 more hours for our AT ISS (personnel** cost unknown)
A94: Average: | B94: 10.5 | F94: Auto Tech Abbreviated Feedback Template 2024-25.docx | G94: Request 3: 20 more hours for our AT ISS (personnel** cost unknown)
F95: Auto Tech Abbreviated Feedback Template 2024-25.docx | G95: Request 3: 20 more hours for our AT ISS (personnel** cost unknown)
F96: Auto Tech Abbreviated Feedback Template 2024-25.docx | G96: Request 3: 20 more hours for our AT ISS (personnel** cost unknown)
F97: Auto Tech Abbreviated Feedback Template 2024-25.docx | G97: Request 3: 20 more hours for our AT ISS (personnel** cost unknown)
A98: Reviewer | B98: Amy | F98: Auto Tech Abbreviated Feedback Template 2024-25.docx | G98: Request 4: Access to entry-level ASE certification examination AND update training for automotive faculty per accreditation standard. $6**000 each year
B99: Misty | F99: Auto Tech Abbreviated Feedback Template 2024-25.docx | G99: Request 4: Access to entry-level ASE certification examination AND update training for automotive faculty per accreditation standard. $6**000 each year
A100: Alignment with an Institutional Goal or Institutional Objective (0***3) | B100: 3 | C100: 3 | F100: Auto Tech Abbreviated Feedback Template 2024-25.docx | G100: Request 4: Access to entry-level ASE certification examination AND update training for automotive faculty per accreditation standard. $6**000 each year
A101: Identified as a need based on assessment outcome(s) (0***3) | B101: 3 | C101: 3 | F101: Auto Tech Abbreviated Feedback Template 2024-25.docx | G101: Request 4: Access to entry-level ASE certification examination AND update training for automotive faculty per accreditation standard. $6**000 each year
A102: Number of students affected (0***3) | B102: 3 | C102: 2 | F102: Auto Tech Abbreviated Feedback Template 2024-25.docx | G102: Request 4: Access to entry-level ASE certification examination AND update training for automotive faculty per accreditation standard. $6**000 each year
A103: Meets a safety or legislated mandate (0***3) | B103: 2 | C103: 2 | F103: Auto Tech Abbreviated Feedback Template 2024-25.docx | G103: Request 4: Access to entry-level ASE certification examination AND update training for automotive faculty per accreditation standard. $6**000 each year
A104: Criticality of the request (0***3) | B104: 2 | C104: 2 | F104: Auto Tech Abbreviated Feedback Template 2024-25.docx | G104: Request 4: Access to entry-level ASE certification examination AND update training for automotive faculty per accreditation standard. $6**000 each year
A105: Total (0***15) | B105: 13 | C105: 12 | E105: =AVERAGE(B105:D105) -> 12.5 | F105: Auto Tech Abbreviated Feedback Template 2024-25.docx | G105: Request 4: Access to entry-level ASE certification examination AND update training for automotive faculty per accreditation standard. $6**000 each year
A106: Average: | B106: 12.5 | F106: Auto Tech Abbreviated Feedback Template 2024-25.docx | G106: Request 4: Access to entry-level ASE certification examination AND update training for automotive faculty per accreditation standard. $6**000 each year
F107: Auto Tech Abbreviated Feedback Template 2024-25.docx | G107: Request 4: Access to entry-level ASE certification examination AND update training for automotive faculty per accreditation standard. $6**000 each year
F108: Auto Tech Abbreviated Feedback Template 2024-25.docx | G108: Request 4: Access to entry-level ASE certification examination AND update training for automotive faculty per accreditation standard. $6**000 each year
F109: Auto Tech Abbreviated Feedback Template 2024-25.docx | G109: Request 4: Access to entry-level ASE certification examination AND update training for automotive faculty per accreditation standard. $6**000 each year
A110: Reviewer | B110: Ross | C110: Anibal | D110: Amy | F110: Basic Needs Abbreviated Feedback Template 2024-25.docx | G110: Request 1: Retention specialist salary/benefits for class visits and proactive inreach
A111: Alignment with an Institutional Goal or Institutional Objective (0***3) | B111: 3 | C111: 3 | D111: 3 | F111: Basic Needs Abbreviated Feedback Template 2024-25.docx | G111: Request 1: Retention specialist salary/benefits for class visits and proactive inreach
A112: Identified as a need based on assessment outcome(s) (0***3) | B112: 3 | C112: 3 | D112: 3 | F112: Basic Needs Abbreviated Feedback Template 2024-25.docx | G112: Request 1: Retention specialist salary/benefits for class visits and proactive inreach
A113: Number of students affected (0***3) | B113: 3 | C113: 3 | D113: 3 | F113: Basic Needs Abbreviated Feedback Template 2024-25.docx | G113: Request 1: Retention specialist salary/benefits for class visits and proactive inreach
A114: Meets a safety or legislated mandate (0***3) | B114: 0 | C114: 0 | D114: 0 | F114: Basic Needs Abbreviated Feedback Template 2024-25.docx | G114: Request 1: Retention specialist salary/benefits for class visits and proactive inreach
A115: Criticality of the request (0***3) | B115: 2 | C115: 2 | D115: 3 | F115: Basic Needs Abbreviated Feedback Template 2024-25.docx | G115: Request 1: Retention specialist salary/benefits for class visits and proactive inreach
A116: Total (0***15) | B116: 11 | C116: 11 | D116: 12 | E116: =AVERAGE(B116:D116) -> 11.33333333 | F116: Basic Needs Abbreviated Feedback Template 2024-25.docx | G116: Request 1: Retention specialist salary/benefits for class visits and proactive inreach
A117: Average: | B117: 11.33 | F117: Basic Needs Abbreviated Feedback Template 2024-25.docx | G117: Request 1: Retention specialist salary/benefits for class visits and proactive inreach
F118: Basic Needs Abbreviated Feedback Template 2024-25.docx | G118: Request 1: Retention specialist salary/benefits for class visits and proactive inreach
F119: Basic Needs Abbreviated Feedback Template 2024-25.docx | G119: Request 1: Retention specialist salary/benefits for class visits and proactive inreach
F120: Basic Needs Abbreviated Feedback Template 2024-25.docx | G120: Request 1: Retention specialist salary/benefits for class visits and proactive inreach
F121: Basic Needs Abbreviated Feedback Template 2024-25.docx | G121: Request 1: Retention specialist salary/benefits for class visits and proactive inreach
A122: Reviewer | B122: Ross | C122: Anibal | D122: Amy | F122: Basic Needs Abbreviated Feedback Template 2024-25.docx | G122: Request 2: Privacy booth for BNC case management (this plan has been retracted due to fire code construction needs)
A123: Alignment with an Institutional Goal or Institutional Objective (0***3) | B123: 1 | C123: 1 | D123: NA | F123: Basic Needs Abbreviated Feedback Template 2024-25.docx | G123: Request 2: Privacy booth for BNC case management (this plan has been retracted due to fire code construction needs)
A124: Identified as a need based on assessment outcome(s) (0***3) | B124: 2 | C124: 1 | D124: NA | F124: Basic Needs Abbreviated Feedback Template 2024-25.docx | G124: Request 2: Privacy booth for BNC case management (this plan has been retracted due to fire code construction needs)
F125: Basic Needs Abbreviated Feedback Template 2024-25.docx | G125: Request 2: Privacy booth for BNC case management (this plan has been retracted due to fire code construction needs)
A126: Number of students affected (0***3) | B126: 3 | C126: 3 | D126: NA | F126: Basic Needs Abbreviated Feedback Template 2024-25.docx | G126: Request 2: Privacy booth for BNC case management (this plan has been retracted due to fire code construction needs)
F127: Basic Needs Abbreviated Feedback Template 2024-25.docx | G127: Request 2: Privacy booth for BNC case management (this plan has been retracted due to fire code construction needs)
A128: Meets a safety or legislated mandate (0***3) | B128: 0 | C128: 0 | D128: NA | F128: Basic Needs Abbreviated Feedback Template 2024-25.docx | G128: Request 2: Privacy booth for BNC case management (this plan has been retracted due to fire code construction needs)
F129: Basic Needs Abbreviated Feedback Template 2024-25.docx | G129: Request 2: Privacy booth for BNC case management (this plan has been retracted due to fire code construction needs)
A130: Criticality of the request (0***3) | B130: 1 | C130: 1 | D130: NA | F130: Basic Needs Abbreviated Feedback Template 2024-25.docx | G130: Request 2: Privacy booth for BNC case management (this plan has been retracted due to fire code construction needs)
F131: Basic Needs Abbreviated Feedback Template 2024-25.docx | G131: Request 2: Privacy booth for BNC case management (this plan has been retracted due to fire code construction needs)
A132: Total (0***15) | B132: 7 | C132: 6 | E132: =AVERAGE(B132:D132) -> 6.5 | F132: Basic Needs Abbreviated Feedback Template 2024-25.docx | G132: Request 2: Privacy booth for BNC case management (this plan has been retracted due to fire code construction needs)
A133: Average: | B133: NA | F133: Basic Needs Abbreviated Feedback Template 2024-25.docx | G133: Request 2: Privacy booth for BNC case management (this plan has been retracted due to fire code construction needs)
A134: Reviewer | B134: Ross | C134: Anibal | D134: AMY | F134: Basic Needs Abbreviated Feedback Template 2024-25.docx | G134: Request 3: Internet splitter setup (for second staff work station)
A135: Alignment with an Institutional Goal or Institutional Objective (0***3) | B135: 0 | C135: 0 | D135: 2 | F135: Basic Needs Abbreviated Feedback Template 2024-25.docx | G135: Request 3: Internet splitter setup (for second staff work station)
A136: Identified as a need based on assessment outcome(s) (0***3) | B136: 2 | C136: 2 | D136: 2 | F136: Basic Needs Abbreviated Feedback Template 2024-25.docx | G136: Request 3: Internet splitter setup (for second staff work station)
A137: Number of students affected (0***3) | B137: 3 | C137: 3 | D137: 3 | F137: Basic Needs Abbreviated Feedback Template 2024-25.docx | G137: Request 3: Internet splitter setup (for second staff work station)
A138: Meets a safety or legislated mandate (0***3) | B138: 0 | C138: 0 | D138: 0 | F138: Basic Needs Abbreviated Feedback Template 2024-25.docx | G138: Request 3: Internet splitter setup (for second staff work station)
A139: Criticality of the request (0***3) | B139: 2 | C139: 2 | D139: 1 | F139: Basic Needs Abbreviated Feedback Template 2024-25.docx | G139: Request 3: Internet splitter setup (for second staff work station)
A140: Total (0***15) | B140: 7 | C140: 7 | D140: 8 | E140: =AVERAGE(B140:D140) -> 7.333333333 | F140: Basic Needs Abbreviated Feedback Template 2024-25.docx | G140: Request 3: Internet splitter setup (for second staff work station)
A141: Average: | B141: 7.33 | F141: Basic Needs Abbreviated Feedback Template 2024-25.docx | G141: Request 3: Internet splitter setup (for second staff work station)
F142: Basic Needs Abbreviated Feedback Template 2024-25.docx | G142: Request 3: Internet splitter setup (for second staff work station)
F143: Basic Needs Abbreviated Feedback Template 2024-25.docx | G143: Request 3: Internet splitter setup (for second staff work station)
F144: Basic Needs Abbreviated Feedback Template 2024-25.docx | G144: Request 3: Internet splitter setup (for second staff work station)
F145: Basic Needs Abbreviated Feedback Template 2024-25.docx | G145: Request 3: Internet splitter setup (for second staff work station)
A146: Reviewer | F146: Bus Office Abbreviated Feedback Template 2024-25.docx | G146: Request 1:
A147: Alignment with an Institutional Goal or Institutional Objective (0***3) | F147: Bus Office Abbreviated Feedback Template 2024-25.docx | G147: Request 1:
A148: Identified as a need based on assessment outcome(s) (0***3) | F148: Bus Office Abbreviated Feedback Template 2024-25.docx | G148: Request 1:
A149: Number of students affected (0***3) | F149: Bus Office Abbreviated Feedback Template 2024-25.docx | G149: Request 1:
A150: Meets a safety or legislated mandate (0***3) | F150: Bus Office Abbreviated Feedback Template 2024-25.docx | G150: Request 1:
A151: Criticality of the request (0***3) | F151: Bus Office Abbreviated Feedback Template 2024-25.docx | G151: Request 1:
A152: Average: | F152: Bus Office Abbreviated Feedback Template 2024-25.docx | G152: Request 1:
F153: Bus Office Abbreviated Feedback Template 2024-25.docx | G153: Request 1:
F154: Bus Office Abbreviated Feedback Template 2024-25.docx | G154: Request 1:
F155: Bus Office Abbreviated Feedback Template 2024-25.docx | G155: Request 1:
F156: Bus Office Abbreviated Feedback Template 2024-25.docx | G156: Request 1:
A157: Reviewer | F157: Bus Office Abbreviated Feedback Template 2024-25.docx | G157: Request 2:
A158: Alignment with an Institutional Goal or Institutional Objective (0***3) | F158: Bus Office Abbreviated Feedback Template 2024-25.docx | G158: Request 2:
A159: Identified as a need based on assessment outcome(s) (0***3) | F159: Bus Office Abbreviated Feedback Template 2024-25.docx | G159: Request 2:
A160: Number of students affected (0***3) | F160: Bus Office Abbreviated Feedback Template 2024-25.docx | G160: Request 2:
A161: Meets a safety or legislated mandate (0***3) | F161: Bus Office Abbreviated Feedback Template 2024-25.docx | G161: Request 2:
A162: Criticality of the request (0***3) | F162: Bus Office Abbreviated Feedback Template 2024-25.docx | G162: Request 2:
A163: Average: | F163: Bus Office Abbreviated Feedback Template 2024-25.docx | G163: Request 2:
F164: Bus Office Abbreviated Feedback Template 2024-25.docx | G164: Request 2:
F165: Bus Office Abbreviated Feedback Template 2024-25.docx | G165: Request 2:
F166: Bus Office Abbreviated Feedback Template 2024-25.docx | G166: Request 2:
F167: Bus Office Abbreviated Feedback Template 2024-25.docx | G167: Request 2:
A168: Reviewer | F168: Bus Office Abbreviated Feedback Template 2024-25.docx | G168: Request 3:
A169: Alignment with an Institutional Goal or Institutional Objective (0***3) | F169: Bus Office Abbreviated Feedback Template 2024-25.docx | G169: Request 3:
A170: Identified as a need based on assessment outcome(s) (0***3) | F170: Bus Office Abbreviated Feedback Template 2024-25.docx | G170: Request 3:
A171: Number of students affected (0***3) | F171: Bus Office Abbreviated Feedback Template 2024-25.docx | G171: Request 3:
A172: Meets a safety or legislated mandate (0***3) | F172: Bus Office Abbreviated Feedback Template 2024-25.docx | G172: Request 3:
A173: Criticality of the request (0***3) | F173: Bus Office Abbreviated Feedback Template 2024-25.docx | G173: Request 3:
A174: Average: | F174: Bus Office Abbreviated Feedback Template 2024-25.docx | G174: Request 3:
F175: Bus Office Abbreviated Feedback Template 2024-25.docx | G175: Request 3:
F176: Bus Office Abbreviated Feedback Template 2024-25.docx | G176: Request 3:
F177: Bus Office Abbreviated Feedback Template 2024-25.docx | G177: Request 3:
F178: Bus Office Abbreviated Feedback Template 2024-25.docx | G178: Request 3:
A179: Reviewer | B179: Ross | C179: amy | D179: Anibal | F179: Dental Abbreviated Feedback Template 2024-25.docx | G179: Request 1: Instructional Aide
A180: Alignment with an Institutional Goal or Institutional Objective (0***3) | B180: 1 | C180: 3 – while not clear in the narrative, I see this as necessary for career readiness (mission) & required for accreditation | D180: 3 I agree | F180: Dental Abbreviated Feedback Template 2024-25.docx | G180: Request 1: Instructional Aide
A181: Identified as a need based on assessment outcome(s) (0***3) | B181: 3 | C181: 1 – I didn’t see any assessment data; only some program***level stats | D181: 1 I agree | F181: Dental Abbreviated Feedback Template 2024-25.docx | G181: Request 1: Instructional Aide
A182: Number of students affected (0***3) | B182: 1 | C182: 1 | D182: 1 | F182: Dental Abbreviated Feedback Template 2024-25.docx | G182: Request 1: Instructional Aide
A183: Meets a safety or legislated mandate (0***3) | B183: 3 | C183: 3 | D183: 3 | F183: Dental Abbreviated Feedback Template 2024-25.docx | G183: Request 1: Instructional Aide
A184: Criticality of the request (0***3) | B184: 3 | C184: 3 | D184: 3 | F184: Dental Abbreviated Feedback Template 2024-25.docx | G184: Request 1: Instructional Aide
A185: Total (0***15) | B185: 11 | C185: 11 | E185: =AVERAGE(B185:D185) -> 11 | F185: Dental Abbreviated Feedback Template 2024-25.docx | G185: Request 1: Instructional Aide
A186: Did they already find a funding source so not General Fund request? | B186: 11 | F186: Dental Abbreviated Feedback Template 2024-25.docx | G186: Request 1: Instructional Aide
A187: Average: | B187: 11 | F187: Dental Abbreviated Feedback Template 2024-25.docx | G187: Request 1: Instructional Aide
F188: Dental Abbreviated Feedback Template 2024-25.docx | G188: Request 1: Instructional Aide
F189: Dental Abbreviated Feedback Template 2024-25.docx | G189: Request 1: Instructional Aide
F190: Dental Abbreviated Feedback Template 2024-25.docx | G190: Request 1: Instructional Aide
A191: Reviewer | B191: Ross | C191: amy | D191: Anibal | F191: Dental Abbreviated Feedback Template 2024-25.docx | G191: Request 2: Compressor replacement for original compressor from Measure Q funds in 2008
A192: Alignment with an Institutional Goal or Institutional Objective (0***3) | B192: 0 | C192: 1 | D192: 0 | F192: Dental Abbreviated Feedback Template 2024-25.docx | G192: Request 2: Compressor replacement for original compressor from Measure Q funds in 2008
A193: Identified as a need based on assessment outcome(s) (0***3) | B193: 2 | C193: 2 | D193: 1 I didn’t see any reference to recent assessment results. | F193: Dental Abbreviated Feedback Template 2024-25.docx | G193: Request 2: Compressor replacement for original compressor from Measure Q funds in 2008
A194: Number of students affected (0***3) | B194: 2 | C194: 2 | D194: 1 | F194: Dental Abbreviated Feedback Template 2024-25.docx | G194: Request 2: Compressor replacement for original compressor from Measure Q funds in 2008
A195: Meets a safety or legislated mandate (0***3) | B195: 2 | C195: 3 | D195: 1 | F195: Dental Abbreviated Feedback Template 2024-25.docx | G195: Request 2: Compressor replacement for original compressor from Measure Q funds in 2008
A196: Criticality of the request (0***3) | B196: 2 | C196: 3 | D196: 1 | F196: Dental Abbreviated Feedback Template 2024-25.docx | G196: Request 2: Compressor replacement for original compressor from Measure Q funds in 2008
A197: Total (0***15) | B197: 8 | C197: 11 | D197: 4 | E197: =AVERAGE(B197:D197) -> 7.666666667 | F197: Dental Abbreviated Feedback Template 2024-25.docx | G197: Request 2: Compressor replacement for original compressor from Measure Q funds in 2008
A198: Average: | B198: 8 | F198: Dental Abbreviated Feedback Template 2024-25.docx | G198: Request 2: Compressor replacement for original compressor from Measure Q funds in 2008
F199: Dental Abbreviated Feedback Template 2024-25.docx | G199: Request 2: Compressor replacement for original compressor from Measure Q funds in 2008
F200: Dental Abbreviated Feedback Template 2024-25.docx | G200: Request 2: Compressor replacement for original compressor from Measure Q funds in 2008
... 446 more rows

Sheet Resource Request Rank
A3: Program | B3: Average rankings
A4: Athletics Abbreviated
A5: Request 4: Hudl Film share / stats | B5: 14
A6: Request 1: 2-4 Large passenger vans | B6: 15
A7: Request 2: 50-60 passenger bus | B7: 15
A8: Request 3: Track Field Equipment | B8: 10
A9: Request 5: Athletic website upgrades | B9: 7.5
A10: Auto Tech Abbreviated
A11: Request 1: (I’m adding up all the equipment costs here) Alignment machine** Battery lift** inspection harness** used engines** etc at $97**203.43 one-time costs | B11: 13.5
A12: Request 2: Accommodate our growing program and satisfy ASE accreditation recommendations on use of available space by combining AT-128 and AT-132 into one larger room. (Facilities** cost unknown) | B12: 13.5
A13: Request 3: 20 more hours for our AT ISS (personnel** cost unknown) | B13: 10.5
A14: Request 4: Access to entry-level ASE certification examination AND update training for automotive faculty per accreditation standard. $6**000 each year | B14: 12.5
A15: Basic Needs Abbreviated
A16: Request 1: Retention specialist salary/benefits for class visits and proactive inreach | B16: 11.33333333
A17: Request 2: Privacy booth for BNC case management (this plan has been retracted due to fire code construction needs) | B17: 6.5
A18: Request 3: Internet splitter setup (for second staff work station) | B18: 7.333333333
A19: Dental Abbreviated
A20: Request 1: Instructional Aide | B20: 11
A21: Request 2: Compressor replacement for original compressor from Measure Q funds in 2008 | B21: 7.666666667
A22: Request 3: Vacuum replacement for original vacuum (suction) from Measure Q in 2008 | B22: 7.666666667
A23: Distance Ed Abbreviated
A24: Request 1: rural Student Outreach & Support 9satellite learning support site) | B24: 9.5
A25: Request 2: AI & Rumi Software | B25: 10.5
A26: Request 3: Development | B26: 9
A27: Request 4: Accessibility Capacity Project | B27: 12.5
A28: Request 5: Canvas Admin Professional Development | B28: 9
A29: Fine Arts Abbreviated
A30: Request 1: Improve storage infrastructure in the building to make it equivalent to the items that we had in the old creative arts. | B30: 11.33333333
A31: Request 10: Add power drops and additional 220 outlets to the sculpture | B31: 1.666666667
A32: Request 11: MIG welders are underpowered | B32: 1.666666667
A33: Request 12: Adding capabilities to cut metal- MillerMatic Spectrum 375 | B33: 1.333333333
A34: Request 13: Students in 3D** Art 15** and Art17 need to be able to check out iPads - 5 iPads Pro +Apple Pencils | B34: 2
A35: Request 2: Install sound dampening in all art studios. | B35: 4.333333333
A36: Request 3: Replace the outdated iMac computers in rooms 102** 104** | B36: 3.333333333
A37: Request 4: Update the Still Life objects and Fabric collection. | B37: 2.666666667
A38: Request 5: Purchase 1 more doc camera for room 104. | B38: 2.333333333
A39: Request 6: Purchase and install pegboard for room 102 to better assist | B39: 1.333333333
A40: Request 7: CR Painting and Drawing students need lockers. | B40: 2
A41: Request 8: Electric kilns | B41: 2
A42: Request 9: raku kiln | B42: 2.333333333
A43: FNR Abbreviated
A44: Request 1: Provide innovative, safe and equitable access to learning opportunities to stay relevant with the rapidly changing technological needs in Natural Resources for student support in the FNR program | B44: 10.33333333
A45: Request 2: Increase wraparound services available to FNR tohelp increase FNR student success and programviability and faculty support. | B45: 6
A46: Request 3: Program Recruitment: Increase awareness of FNR and Geomatics in the community. Increase program completers. Increase program offerings of Geomatics | B46: 9.333333333
A47: Physical Science Abbreviated
A48: Request 5: Two set ups comprising Pasco's Adiabatic Gas Law Apparatus** Ideal Gal Law Apparatus** and a Replacement Glass Tube | B48: 7.5
A49: Request 1: Mini-freezer + glass ware and thermometers as needed. | B49: 8
A50: Request 2: Lapel microphones (2 or 3) | B50: 8
A51: Request 3: Centimeter tape measures | B51: 7.5
A52: Request 4: Klinger X-ray apparatus Mo** complete 554 801** Cu X-ray tube 554 862** LiF crystal for Bragg reflection 554 77** and Compton accessory X-ray 554 836. | B52: 7.5
A53: RN Abbreviated
A54: Request 1: Faculty development training to certify as Simulation Specialists (at least one person at each campus) | B54: 13.66666667
A55: Request 2: Full-time clinical site scheduler and coordinator | B55: 6
A56: Request 3: Increase tech from part-time to full-time on both campuses | B56: 9.666666667
A57: Request 4: Increase lecture and skills lab space on both campuses | B57: 11.33333333
A58: WCE Abbreviated
A59: Request 1: Assistant Director** ACCE | B59: 3.666666667
A60: Welding Abbreviated
A61: Request 1: Additional full-time faculty | B61: 9
A62: Request 2 - 7: welding cable leads, Torches, and Welder | B62: 10
A63: Request 8: Jacket and gloves replacement | B63: 9.5
A64: Request 9 - 10: Grinders | B64: 5
A65: Request 11 - 14: Various Welders and Fume Extractor | B65: 13

Sheet Sheet4 (hidden)
A1: Criteria | B1: R1 | C1: R2 | D1: R3 | E1: Avg | F1: Program | G1: Request # and Description
A2: Total (0***15) | B2: 15 | C2: 15 | E2: 15 | F2: Athletics Abbreviated Feedback Template 2024-25.docx | G2: Request 1: 2-4 Large passenger vans
A3: Total (0***15) | B3: 15 | C3: 15 | E3: 15 | F3: Athletics Abbreviated Feedback Template 2024-25.docx | G3: Request 2: 50-60 passenger bus
A4: Total (0***15) | B4: 10 | C4: 10 | E4: 10 | F4: Athletics Abbreviated Feedback Template 2024-25.docx | G4: Request 3: Track Field Equipment
A5: Total (0***15) | B5: 14 | C5: 14 | E5: 14 | F5: Athletics Abbreviated Feedback Template 2024-25.docx | G5: Request 4: Hudl Film share / stats
A6: Total (0***15) | B6: 7 | C6: 8 | E6: 7.5 | F6: Athletics Abbreviated Feedback Template 2024-25.docx | G6: Request 5: Athletic website upgrades
A7: Total (0***15) | B7: 14 | C7: 13 | E7: 13.5 | F7: Auto Tech Abbreviated Feedback Template 2024-25.docx | G7: Request 1: (I’m adding up all the equipment costs here) Alignment machine** Battery lift** inspection harness** used engines** etc at $97**203.43 one-time costs
A8: Total (0***15) | B8: 14 | C8: 13 | E8: 13.5 | F8: Auto Tech Abbreviated Feedback Template 2024-25.docx | G8: Request 2: Accommodate our growing program and satisfy ASE accreditation recommendations on use of available space by combining AT-128 and AT-132 into one larger room. (Facilities** cost unknown)
A9: Total (0***15) | B9: 11 | C9: 10 | E9: 10.5 | F9: Auto Tech Abbreviated Feedback Template 2024-25.docx | G9: Request 3: 20 more hours for our AT ISS (personnel** cost unknown)
A10: Total (0***15) | B10: 13 | C10: 12 | E10: 12.5 | F10: Auto Tech Abbreviated Feedback Template 2024-25.docx | G10: Request 4: Access to entry-level ASE certification examination AND update training for automotive faculty per accreditation standard. $6**000 each year
A11: Total (0***15) | B11: 11 | C11: 11 | D11: 12 | E11: 11.33333333 | F11: Basic Needs Abbreviated Feedback Template 2024-25.docx | G11: Request 1: Retention specialist salary/benefits for class visits and proactive inreach
A12: Total (0***15) | B12: 7 | C12: 6 | E12: 6.5 | F12: Basic Needs Abbreviated Feedback Template 2024-25.docx | G12: Request 2: Privacy booth for BNC case management (this plan has been retracted due to fire code construction needs)
A13: Total (0***15) | B13: 7 | C13: 7 | D13: 8 | E13: 7.333333333 | F13: Basic Needs Abbreviated Feedback Template 2024-25.docx | G13: Request 3: Internet splitter setup (for second staff work station)
A14: Total (0***15) | B14: 11 | C14: 11 | E14: 11 | F14: Dental Abbreviated Feedback Template 2024-25.docx | G14: Request 1: Instructional Aide
A15: Total (0***15) | B15: 8 | C15: 11 | D15: 4 | E15: 7.666666667 | F15: Dental Abbreviated Feedback Template 2024-25.docx | G15: Request 2: Compressor replacement for original compressor from Measure Q funds in 2008
A16: Total (0***15) | B16: 8 | C16: 11 | D16: 4 | E16: 7.666666667 | F16: Dental Abbreviated Feedback Template 2024-25.docx | G16: Request 3: Vacuum replacement for original vacuum (suction) from Measure Q in 2008
A17: Total (0***15) | B17: 9 | C17: 10 | E17: 9.5 | F17: Distance Ed Abbreviated Feedback Template 2024-25.docx | G17: Request 1: rural Student Outreach & Support 9satellite learning support site)
A18: Total (0***15) | B18: 10 | C18: 11 | E18: 10.5 | F18: Distance Ed Abbreviated Feedback Template 2024-25.docx | G18: Request 2: AI & Rumi Software
A19: Total (0***15) | B19: 9 | C19: 9 | E19: 9 | F19: Distance Ed Abbreviated Feedback Template 2024-25.docx | G19: Request 3: Development
A20: Total (0***15) | B20: 14 | C20: 11 | E20: 12.5 | F20: Distance Ed Abbreviated Feedback Template 2024-25.docx | G20: Request 4: Accessibility Capacity Project
A21: Total (0***15) | B21: 7 | C21: 11 | E21: 9 | F21: Distance Ed Abbreviated Feedback Template 2024-25.docx | G21: Request 5: Canvas Admin Professional Development
A22: Total (0***15) | B22: 11 | C22: 12 | D22: 11 | E22: 11.33333333 | F22: Fine Arts Abbreviated Feedback Template 2024-25.docx | G22: Request 1: Improve storage infrastructure in the building to make it equivalent to the items that we had in the old creative arts.
A23: Total (0***15) | B23: 3 | C23: 6 | D23: 4 | E23: 4.333333333 | F23: Fine Arts Abbreviated Feedback Template 2024-25.docx | G23: Request 2: Install sound dampening in all art studios.
A24: Total (0***15) | B24: 3 | C24: 3 | D24: 4 | E24: 3.333333333 | F24: Fine Arts Abbreviated Feedback Template 2024-25.docx | G24: Request 3: Replace the outdated iMac computers in rooms 102** 104**
A25: Total (0***15) | B25: 3 | C25: 2 | D25: 3 | E25: 2.666666667 | F25: Fine Arts Abbreviated Feedback Template 2024-25.docx | G25: Request 4: Update the Still Life objects and Fabric collection.
A26: Total (0***15) | B26: 3 | C26: 2 | D26: 2 | E26: 2.333333333 | F26: Fine Arts Abbreviated Feedback Template 2024-25.docx | G26: Request 5: Purchase 1 more doc camera for room 104.
A27: Total (0***15) | B27: 2 | C27: 1 | D27: 1 | E27: 1.333333333 | F27: Fine Arts Abbreviated Feedback Template 2024-25.docx | G27: Request 6: Purchase and install pegboard for room 102 to better assist
A28: Total (0***15) | B28: 2 | C28: 2 | D28: 2 | E28: 2 | F28: Fine Arts Abbreviated Feedback Template 2024-25.docx | G28: Request 7: CR Painting and Drawing students need lockers.
A29: Total (0***15) | B29: 2 | C29: 2 | D29: 2 | E29: 2 | F29: Fine Arts Abbreviated Feedback Template 2024-25.docx | G29: Request 8: Electric kilns
A30: Total (0***15) | B30: 2 | C30: 2 | D30: 3 | E30: 2.333333333 | F30: Fine Arts Abbreviated Feedback Template 2024-25.docx | G30: Request 9: raku kiln
A31: Total (0***15) | B31: 2 | C31: 2 | D31: 1 | E31: 1.666666667 | F31: Fine Arts Abbreviated Feedback Template 2024-25.docx | G31: Request 10: Add power drops and additional 220 outlets to the sculpture
A32: Total (0***15) | B32: 2 | C32: 1 | D32: 2 | E32: 1.666666667 | F32: Fine Arts Abbreviated Feedback Template 2024-25.docx | G32: Request 11: MIG welders are underpowered
A33: Total (0***15) | B33: 2 | C33: 1 | D33: 1 | E33: 1.333333333 | F33: Fine Arts Abbreviated Feedback Template 2024-25.docx | G33: Request 12: Adding capabilities to cut metal- MillerMatic Spectrum 375
A34: Total (0***15) | B34: 2 | C34: 2 | D34: 2 | E34: 2 | F34: Fine Arts Abbreviated Feedback Template 2024-25.docx | G34: Request 13: Students in 3D** Art 15** and Art17 need to be able to check out iPads - 5 iPads Pro +Apple Pencils
A35: Total (0***15) | B35: 12 | C35: 9 | D35: 10 | E35: 10.33333333 | F35: FNR Abbreviated Feedback Template 2024-25.docx | G35: Request 1:
A36: Total (0***15) | B36: 6 | C36: 6 | D36: 6 | E36: 6 | F36: FNR Abbreviated Feedback Template 2024-25.docx | G36: Request 2:
A37: Total (0***15) | B37: 9 | C37: 10 | D37: 9 | E37: 9.333333333 | F37: FNR Abbreviated Feedback Template 2024-25.docx | G37: Request 3:
A38: Total (0***15) | B38: 7 | C38: 9 | E38: 8 | F38: Physical Science Abbreviated Feedback Template 2024-25.docx | G38: Request 1: Mini-freezer + glass ware and thermometers as needed.
A39: Total (0***15) | B39: 7 | C39: 9 | E39: 8 | F39: Physical Science Abbreviated Feedback Template 2024-25.docx | G39: Request 2: Lapel microphones (2 or 3)
A40: Total (0***15) | B40: 7 | C40: 8 | E40: 7.5 | F40: Physical Science Abbreviated Feedback Template 2024-25.docx | G40: Request 3: Centimeter tape measures
A41: Total (0***15) | B41: 7 | C41: 8 | E41: 7.5 | F41: Physical Science Abbreviated Feedback Template 2024-25.docx | G41: Request 4: Klinger X-ray apparatus Mo** complete 554 801** Cu X-ray tube 554 862** LiF crystal for Bragg reflection 554 77** and Compton accessory X-ray 554 836.
A42: Total (0***15) | B42: 7 | C42: 8 | E42: 7.5 | F42: Physical Science Abbreviated Feedback Template 2024-25.docx | G42: Request 5: Two set ups comprising Pasco's Adiabatic Gas Law Apparatus** Ideal Gal Law Apparatus** and a Replacement Glass Tube
A43: Total (0***15) | B43: 14 | C43: 13 | D43: 14 | E43: 13.66666667 | F43: RN Abbreviated Feedback Template 2024-25.docx | G43: Request 1: Faculty development training to certify as Simulation Specialists (at least one person at each campus)
A44: Total (0***15) | B44: 6 | C44: 5 | D44: 7 | E44: 6 | F44: RN Abbreviated Feedback Template 2024-25.docx | G44: Request 2: Full-time clinical site scheduler and coordinator
A45: Total (0***15) | B45: 12 | C45: 8 | D45: 9 | E45: 9.666666667 | F45: RN Abbreviated Feedback Template 2024-25.docx | G45: Request 3: Increase tech from part-time to full-time on both campuses
A46: Total (0***15) | B46: 9 | C46: 13 | D46: 12 | E46: 11.33333333 | F46: RN Abbreviated Feedback Template 2024-25.docx | G46: Request 4: Increase lecture and skills lab space on both campuses
A47: Total (0***15) | B47: 3 | C47: 5 | D47: 3 | E47: 3.666666667 | F47: WCE Abbreviated Feedback Template 2024-25.docx | G47: Request 1: Assistant Director** ACCE
A48: Total (0***15) | B48: 9 | C48: 9 | E48: 9 | F48: Welding Abbreviated Feedback Template 2024-25.docx | G48: Request 1: Additional full-time faculty
A49: Total (0***15) | B49: 10 | C49: 10 | E49: 10 | F49: Welding Abbreviated Feedback Template 2024-25.docx | G49: Request 2 - 7: welding cable leads, Torches, and Welder
A50: Total (0***15) | B50: 9 | C50: 10 | E50: 9.5 | F50: Welding Abbreviated Feedback Template 2024-25.docx | G50: Request 8: Jacket and gloves replacement
A51: Total (0***15) | B51: 5 | C51: 5 | E51: 5 | F51: Welding Abbreviated Feedback Template 2024-25.docx | G51: Request 9 - 10: Grinders
A52: Total (0***15) | B52: 13 | C52: 13 | E52: 13 | F52: Welding Abbreviated Feedback Template 2024-25.docx | G52: Request 11 - 14: Various Welders and Fume Extractor
